bitfinex/quotes_ETHUSD_20250623
["timestamp","ask_amount","ask_price","bid_price","bid_amount"]
[1750703077478,0.805,2298.4,2297.9,4.35176607]
[1750703077652,0.805,2298.4,2297.8,4.35190454]
[1750703077861,0.805,2298.4,2297.9,4.35178811]
[1750703078239,0.805,2298.8,2297.8,1.1581]
[1750703078467,0.805,2298.8,2298.1,4.35141074]
[1750703078767,1.1261,2298.8,2298.2,4.3511666]
[1750703078968,0.805,2298.8,2297.8,9.1841]
[1750703079257,0.805,2298.8,2298.3,4.3510282]
[1750703079420,0.805,2298.8,2298.1,4.3512354]
[1750703079625,0.805,2298.8,2298.2,4.35119613]
[1750703080227,0.805,2298.8,2298.3,4.35101035]
[1750703080462,0.805,2298.8,2298.3,0.87022065]
[1750703080762,0.805,2298.8,2298.4,4.35082804]
[1750703081061,0.805,2298.8,2298.4,4.35070061]
[1750703081261,0.805,2299.2,2298.5,4.35063544]
[1750703081459,0.805,2299.2,2298.6,4.35036281]
[1750703081759,2.22879631,2299.2,2298.7,4.35021448]
[1750703081966,0.805,2299.2,2298.8,4.35008636]
[1750703082166,0.805,2299.2,2298.9,4.34986433]
[1750703082351,0.805,2299.2,2298.8,4.34998871]
[1750703082551,0.805,2299.2,2298.8,4.34999888]
[1750703082864,0.805,2299.7,2298.6,10.0]
[1750703083042,0.805,2299.7,2299.1,4.34939654]
[1750703083242,0.805,2299.7,2299.2,4.34933538]
[1750703083536,0.805,2299.7,2298.8,4.35002914]
[1750703083748,0.805,2299.7,2298.9,4.34976201]
[1750703084065,11.06883597,2299.9,2298.5,12.35963279]
[1750703084066,0.805,2299.3,2298.5,4.35055163]
[1750703084254,0.805,2299.3,2298.5,4.35066347]
[1750703084565,0.805,2299.3,2298.4,13.53915154]
[1750703084762,0.805,2299.3,2298.4,13.53916998]
[1750703084940,0.805,2299.3,2298.5,4.35065517]
[1750703085142,1.1833836,2299.2,2298.5,4.35065517]
[1750703085466,1.1833836,2299.2,2298.4,13.53916998]
[1750703085467,11.1833836,2299.2,2298.4,9.1884]
[1750703085635,0.805,2299.3,2298.7,4.35010234]
[1750703085832,0.805,2299.3,2298.4,9.1884]
[1750703086139,14.59503233,2299.9,2299.1,4.34952257]
[1750703086140,0.805,2299.7,2299.1,4.34952257]
[1750703086340,0.805,2299.7,2299.0,4.34960885]
[1750703086570,0.805,2299.7,2299.1,4.3495221]
[1750703086869,10.0,2299.6,2299.2,4.34933216]
[1750703087171,10.0,2299.6,2299.1,4.34941831]
[1750703087464,0.805,2299.7,2298.7,2.406]
[1750703087672,0.805,2299.7,2298.9,4.3497412]
[1750703087967,1.356,2299.4,2298.5,8.008]
[1750703088276,14.00503233,2298.7,2297.5,1.2002]
[1750703088484,0.806,2298.5,2297.8,12.35987982]
[1750703088688,0.806,2298.5,2297.8,4.3519592]
[1750703088826,3.52760323,2298.5,2297.8,4.3519592]
[1750703089026,10.0,2298.4,2297.6,12.36028265]
[1750703089466,11.03194835,2298.4,2297.8,4.35188421]
[1750703089732,11.03194835,2298.4,2297.7,4.35217799]
[1750703089733,11.03194835,2298.4,2297.7,4.35206997]
[1750703089932,11.03194835,2298.4,2297.9,4.35163759]
[1750703090144,0.806,2298.5,2298.0,4.35147787]
[1750703090478,0.806,2298.5,2297.9,4.35170054]
[1750703090982,1.8866,2298.5,2297.8,4.35188233]
[1750703091289,1.8866,2298.5,2297.9,4.35179415]
[1750703091506,2.91846084,2298.5,2297.6,8.008]
[1750703091645,1.03186084,2298.4,2297.7,8.008]
[1750703091993,1.03186084,2298.3,2297.4,2.406]
[1750703092198,13.89461226,2298.5,2297.2,1.2667]
[1750703092199,2.94104692,2298.2,2297.3,12.36081328]
[1750703092484,0.55,2298.0,2297.1,0.04]
[1750703092637,0.806,2297.8,2297.1,4.39322367]
[1750703092842,1.83786084,2297.8,2297.1,4.3932371]
[1750703093087,0.806,2297.8,2297.1,4.3932371]
[1750703093237,1.03186084,2297.7,2297.1,4.39328594]
[1750703093597,1.03186084,2297.6,2297.1,0.04]
[1750703093743,1.03186084,2297.5,2297.1,0.04]
[1750703093939,1.28538608,2297.8,2297.1,0.04]
[1750703093940,1.83786084,2297.4,2297.1,0.04]
[1750703094141,1.03186084,2297.3,2297.1,0.04]
[1750703094388,1.03186084,2297.2,2297.1,0.04]
[1750703094745,1.03186084,2297.3,2297.2,4.35312554]
[1750703094973,1.03639662,2297.9,2297.3,4.35293605]
[1750703095175,1.03639662,2297.8,2297.3,4.35293605]
[1750703095490,1.03725484,2297.7,2297.6,4.35224935]
[1750703095647,10.806,2298.3,2297.7,4.35214768]
[1750703095984,1.03726499,2298.2,2297.2,12.3611228]
[1750703096189,1.03726499,2298.1,2297.6,4.35227509]
[1750703096507,1.03726499,2298.0,2297.2,8.008]
[1750703096721,1.03726499,2297.9,2297.6,4.35220573]
[1750703096921,1.03726499,2297.8,2297.7,4.35216618]
[1750703099410,10.806,2298.3,2297.6,5.56945785]
[1750703099708,1.03830785,2298.2,2297.9,4.35170464]
[1750703099907,1.03830785,2298.1,2297.9,4.35169067]
[1750703100216,1.03830785,2298.0,2297.9,4.35179946]
[1750703100621,0.806,2298.7,2297.8,8.008]
[1750703100918,1.03810751,2298.6,2298.5,4.35066347]
[1750703101539,1.03810751,2298.6,2298.3,9.22]
[1750703101540,1.03787488,2298.6,2298.3,9.22]
[1750703101712,0.806,2299.0,2298.4,12.3588309]
[1750703102045,12.861,2299.3,2298.8,4.3500957]
[1750703102046,1.03792938,2298.9,2298.8,4.3500957]
[1750703102209,3.31351954,2299.7,2299.3,4.34906969]
[1750703102410,3.31351954,2299.7,2298.9,4.34986287]
[1750703102411,1.03765238,2299.6,2299.0,12.35660957]
[1750703102610,1.03765238,2299.5,2299.1,4.34951252]
[1750703102848,1.03765238,2299.4,2299.2,4.34917967]
[1750703103021,0.806,2299.7,2299.3,4.34914974]
[1750703103346,1.03737898,2299.6,2299.0,8.007]
[1750703103550,2.22171688,2299.5,2298.9,4.34981523]
[1750703103853,1.03737898,2299.4,2298.9,4.3498966]
[1750703104014,1.03737898,2299.3,2298.9,4.3498966]
[1750703104347,1.03737898,2299.2,2298.8,12.35699059]
[1750703104519,1.03737898,2299.6,2298.8,8.007]
[1750703104720,1.03737898,2299.5,2298.8,8.007]
[1750703104925,0.806,2299.3,2298.8,8.007]
[1750703105123,2.22171688,2299.2,2298.8,8.007]
[1750703105447,1.03737898,2299.1,2298.8,8.007]
[1750703105641,1.03737898,2299.0,2298.8,8.007]
[1750703105829,11.03737898,2299.1,2298.8,8.007]
[1750703106031,1.03737898,2299.0,2298.8,8.007]
[1750703106238,1.03737898,2299.0,2298.3,1.1657]
[1750703106450,0.55,2298.8,2298.0,1.1814]
[1750703106642,14.28472914,2298.7,2297.9,12.35674249]
[1750703106952,14.28472914,2298.7,2298.2,4.35113743]
[1750703106953,1.84337898,2298.6,2298.2,4.35113743]
[1750703107136,1.84337898,2298.6,2298.1,4.35132091]
[1750703107449,0.806,2298.6,2298.3,4.35103643]
[1750703107609,1.84337898,2298.9,2298.3,4.35088845]
[1750703107809,1.03737898,2298.8,2298.4,4.35084524]
[1750703108009,1.03737898,2298.8,2298.3,4.35092855]
[1750703108241,1.03737898,2298.8,2298.2,4.35115987]
[1750703108447,1.03737898,2298.8,2298.3,4.35096789]
[1750703108654,1.03737898,2298.7,2298.4,8.005]
[1750703108840,1.03737898,2298.8,2298.4,8.005]
[1750703109058,1.03737898,2298.7,2298.4,8.005]
[1750703109262,1.03737898,2298.8,2298.4,8.005]
[1750703109566,1.03737898,2298.8,2298.5,4.3506538]
[1750703109965,1.03737898,2299.0,2298.6,4.35032024]
[1750703110165,0.806,2299.2,2298.8,4.35009107]
[1750703110383,0.806,2299.2,2298.7,4.35019094]
[1750703110542,1.84337898,2299.2,2298.7,4.35024688]
[1750703110738,0.806,2299.2,2298.8,4.35009088]
[1750703111059,1.84337898,2299.2,2298.6,4.35039926]
[1750703111260,3.81371688,2299.2,2298.5,4.35052726]
[1750703111460,3.81371688,2299.2,2298.4,12.35575696]
[1750703111662,0.806,2298.9,2297.7,1.1786]
[1750703111853,4.22737898,2298.9,2298.0,4.35143459]
[1750703112050,11.03737898,2298.8,2298.1,4.35130717]
[1750703112251,2.46011688,2298.7,2298.0,8.003]
[1750703112441,2.46011688,2298.7,2298.0,12.35452116]
[1750703112637,1.03737898,2298.7,2298.1,4.35130163]
[1750703112875,11.03737898,2298.8,2298.1,4.35130163]
[1750703113075,11.03737898,2298.8,2298.3,4.35096249]
[1750703113278,1.03737898,2298.8,2298.5,4.35057956]
[1750703113440,11.84337898,2298.9,2298.6,4.35033969]
[1750703113639,0.806,2298.9,2298.5,8.003]
[1750703113840,1.03765749,2299.1,2298.7,4.35014188]
[1750703114078,1.03765749,2299.1,2298.5,12.35357605]
[1750703114079,1.03765749,2299.2,2298.9,4.34975446]
[1750703114381,1.07765749,2299.9,2299.8,4.34820419]
[1750703114675,0.04,2299.9,2299.7,8.002]
[1750703115944,0.04,2299.9,2299.7,12.35030857]
[1750703116142,0.04,2299.9,2299.8,4.34820419]
[1750703117270,0.04,2299.9,2299.7,9.2736]
[1750703117578,0.04,2299.9,2299.7,8.002]
[1750703117777,0.04,2299.9,2299.7,12.35030818]
[1750703117974,0.04,2299.9,2299.8,4.34820419]
[1750703118378,0.04,2299.9,2299.7,12.3503064]
[1750703118579,0.04,2299.9,2299.8,4.34820419]
[1750703119317,0.04,2299.9,2299.8,5.53420419]
[1750703119603,0.04,2299.9,2299.8,16.08420419]
[1750703120188,0.04,2299.9,2299.8,15.53420419]
[1750703120493,0.04,2299.9,2299.8,25.91420419]
[1750703120870,0.04,2299.9,2299.8,23.53120419]
[1750703121576,0.04,2299.9,2299.8,24.08120419]
[1750703124067,0.04,2299.9,2299.8,25.91120419]
[1750703125006,0.04,2299.9,2299.8,23.52820419]
[1750703126270,0.04,2299.9,2299.8,23.52620419]
[1750703126711,0.04,2299.9,2299.8,4.34820419]
[1750703126911,0.04,2299.9,2299.8,13.59120419]
[1750703127116,0.04,2299.9,2299.8,24.14120419]
[1750703127417,0.04,2299.9,2299.8,15.59920419]
[1750703127599,0.04,2299.9,2299.8,22.34020419]
[1750703128197,0.04,2299.9,2299.8,12.34020419]
[1750703130813,0.04,2299.9,2299.6,4.34850694]
[1750703130989,0.04,2299.9,2299.7,7.989]
[1750703131185,0.04,2299.9,2299.8,4.34820419]
[1750703131507,0.04,2299.9,2299.7,12.33727853]
[1750703131725,0.04,2299.9,2299.8,4.34820419]
[1750703131924,0.04,2299.9,2299.7,12.33737277]
[1750703131925,0.04,2299.9,2299.7,12.3373127]
[1750703132425,0.04,2299.9,2299.8,7.989]
[1750703133083,0.04,2299.9,2299.8,12.33720419]
[1750703133288,0.04,2299.9,2299.1,10.0]
[1750703133289,0.04,2299.9,2298.8,11.1795]
[1750703133489,0.04,2299.9,2299.4,4.34884594]
[1750703133684,10.8078,2299.8,2298.9,4.34981172]
[1750703133888,0.8078,2299.6,2299.0,7.988]
[1750703134518,0.8078,2299.6,2299.2,4.34921439]
[1750703134705,0.8078,2299.6,2299.3,12.33714644]
[1750703134900,0.8078,2299.6,2299.4,4.34892035]
[1750703135106,0.8078,2299.6,2299.5,4.34877147]
[1750703135423,0.8078,2299.6,2299.4,4.34885666]
[1750703135721,0.8478,2299.9,2299.4,4.34887389]
[1750703135922,0.40440577,2299.8,2299.4,4.34878137]
[1750703136226,1.17088,2299.9,2299.5,4.34875838]
[1750703136428,1.17088,2299.9,2299.6,7.988]
[1750703137488,0.04,2299.9,2299.8,4.34820419]
[1750703137917,0.04,2299.9,2299.6,7.988]
[1750703138229,0.04,2299.9,2299.7,4.3483744]
[1750703138523,0.04,2299.9,2299.7,4.3483018]
[1750703138684,0.04,2299.9,2299.8,4.34820419]
[1750703140026,0.04,2299.9,2299.7,4.3482667]
[1750703140236,0.04,2299.9,2299.8,4.34820419]
[1750703140528,0.04,2299.9,2299.8,5.58930419]
[1750703141718,0.04,2299.9,2299.8,13.57430419]
[1750703141922,0.04,2299.9,2299.8,12.33320419]
[1750703142912,0.04,2299.9,2299.8,22.33320419]
[1750703143726,0.04,2299.9,2299.8,22.88320419]
[1750703143933,0.5,2303.3,2300.8,4.34631432]
[1750703144244,0.8078,2301.6,2300.8,22.32931432]
[1750703145327,0.8078,2301.6,2300.8,14.34631432]
[1750703145720,0.8078,2301.6,2300.8,22.32831432]
[1750703146292,0.55,2301.7,2300.8,4.34631432]
[1750703146502,12.925,2301.8,2300.8,12.32731432]
[1750703146739,0.8078,2301.6,2300.8,12.32731432]
[1750703148032,0.8078,2301.6,2300.8,4.34631432]
[1750703148361,0.8078,2301.6,2300.8,12.32531432]
[1750703149026,0.8078,2301.6,2300.7,4.34642482]
[1750703149232,0.8158,2301.0,2300.8,7.978]
[1750703149546,0.8158,2301.0,2300.8,12.32431432]
[1750703149724,0.8158,2301.0,2300.7,4.34643663]
[1750703149931,0.8158,2301.0,2300.4,4.34694607]
[1750703150126,0.8158,2301.0,2300.3,7.977]
[1750703150127,1.3658,2300.8,2300.3,7.977]
[1750703150327,1.33938655,2300.7,2300.3,7.977]
[1750703150563,1.3658,2300.8,2300.3,7.977]
[1750703150975,0.8158,2300.5,2299.7,4.3482566]
[1750703151142,0.8158,2300.1,2299.2,4.34930053]
[1750703151468,0.8158,2300.1,2298.7,11.6136]
[1750703151469,0.8158,2300.1,2299.7,4.34825932]
[1750703151767,0.8158,2300.1,2299.7,7.976]
[1750703152129,0.8158,2300.4,2300.1,4.34754531]
[1750703152324,0.8158,2300.4,2299.7,12.32437834]
[1750703152325,0.8158,2300.4,2300.2,7.976]
[1750703152560,0.8158,2300.4,2300.3,7.976]
[1750703152779,0.8158,2300.4,2300.2,7.975]
[1750703153876,0.8158,2300.4,2299.3,11.1686]
[1750703154029,0.8158,2300.4,2299.6,4.34849539]
[1750703154226,0.8158,2300.4,2299.7,7.975]
[1750703154466,1.3658,2300.6,2299.7,7.975]
[1750703154658,1.3658,2300.6,2298.2,1.2196]
[1750703154659,0.55,2299.9,2298.2,1.2196]
[1750703154863,11.98806551,2300.1,2298.2,1.2196]
[1750703154864,0.55,2299.5,2298.2,1.2196]
[1750703155042,0.8158,2299.4,2298.4,4.35085276]
[1750703155245,0.8158,2299.4,2298.7,4.35013513]
[1750703155440,0.8158,2299.4,2298.8,7.974]
[1750703155644,0.8158,2299.4,2298.9,4.349819]
[1750703155843,0.8158,2299.4,2299.1,4.34942554]
[1750703156080,0.8158,2299.4,2299.2,7.976]
[1750703156864,0.8158,2299.4,2299.2,12.32525115]
[1750703157466,0.8158,2299.7,2299.2,12.32518957]
[1750703157664,0.8158,2299.7,2299.4,4.34894303]
[1750703157866,0.8158,2299.7,2299.3,4.34904426]
[1750703158075,0.8158,2299.7,2299.5,4.34859876]
[1750703158274,0.8158,2299.7,2298.8,1.1706]
[1750703158488,0.8158,2299.7,2299.1,4.34952242]
[1750703158976,0.8158,2299.7,2299.0,4.34960549]
[1750703159188,0.55,2299.6,2299.1,7.974]
[1750703159375,0.55,2299.6,2298.1,0.04]
[1750703159376,1.3658,2299.4,2298.1,5.65861275]
[1750703159563,1.3658,2299.4,2298.3,4.35103956]
[1750703159766,0.55,2299.2,2298.4,7.974]
[1750703160065,0.8158,2299.1,2298.1,1.3072]
[1750703160267,0.55,2299.2,2298.2,7.973]
[1750703160268,0.8158,2298.8,2298.2,7.973]
[1750703160482,0.8158,2298.8,2298.4,4.35076718]
[1750703160778,0.8158,2299.2,2298.9,4.3497699]
[1750703160951,0.8158,2300.0,2299.4,4.34896059]
[1750703161157,0.8158,2300.0,2299.5,12.32177081]
[1750703161666,0.8158,2300.0,2299.5,7.973]
[1750703161874,0.8158,2300.0,2299.6,4.34846091]
[1750703162041,0.8158,2300.0,2299.7,4.34827091]
[1750703162238,0.8158,2300.0,2299.6,10.0]
[1750703162472,1.44662273,2300.0,2299.5,7.973]
[1750703163541,3.82162273,2300.0,2299.5,7.973]
[1750703164058,3.82162273,2300.0,2299.5,12.32176718]
[1750703164264,0.55,2299.9,2299.1,10.0]
[1750703164477,0.8158,2299.8,2299.1,14.3495042]
[1750703165079,0.8158,2299.8,2299.2,4.34931033]
[1750703165265,0.8158,2299.8,2299.1,14.34945212]
[1750703165479,0.8158,2299.8,2299.1,10.0]
[1750703165879,2.375,2299.7,2299.1,10.0]
[1750703166201,2.364,2299.7,2299.1,14.34939948]
[1750703166721,2.364,2299.7,2299.1,10.0]
[1750703166866,1.3658,2299.6,2299.0,7.972]
[1750703167259,0.8158,2299.6,2299.0,7.972]
[1750703167467,0.55,2299.5,2298.3,1.2763]
[1750703167774,0.8158,2299.4,2298.5,4.35065862]
[1750703167965,0.8158,2299.4,2298.6,10.0]
[1750703168159,0.8158,2299.4,2298.7,4.35015631]
[1750703168365,0.8158,2299.4,2298.9,4.34982766]
[1750703168593,3.1798,2299.4,2298.9,7.97]
[1750703168993,0.8158,2299.4,2298.9,12.31980265]
[1750703169180,3.1798,2299.4,2298.9,7.97]
[1750703169393,0.8158,2299.4,2299.0,4.34971174]
[1750703169706,2.364,2299.7,2298.9,9.1403]
[1750703169874,2.364,2299.7,2299.3,4.34912952]
[1750703170075,0.8158,2299.8,2299.5,4.34875553]
[1750703170398,0.8158,2299.8,2299.4,7.969]
[1750703170599,0.8158,2299.8,2299.5,7.969]
[1750703170801,0.8158,2299.8,2299.5,12.31765452]
[1750703171098,0.8158,2299.8,2299.5,7.969]
[1750703171284,0.8158,2299.8,2299.5,12.31761202]
[1750703171664,0.8158,2299.8,2299.5,7.969]
[1750703171864,0.8158,2300.2,2299.8,4.34817628]
[1750703172272,0.8158,2300.2,2299.9,7.968]
[1750703172802,0.8158,2300.2,2299.9,12.31600978]
[1750703173005,0.8158,2300.5,2300.2,4.34736224]
[1750703173195,0.8158,2300.5,2300.3,7.967]
[1750703173373,0.8158,2300.5,2300.3,12.31417204]
[1750703173575,0.8158,2300.5,2300.3,7.967]
[1750703173770,0.8158,2300.5,2300.3,12.31423681]
[1750703173994,0.8158,2300.5,2300.3,7.967]
[1750703174478,0.8158,2300.5,2300.3,12.31423859]
[1750703174804,0.8158,2300.8,2300.3,7.967]
[1750703174966,12.13778,2300.8,2300.3,7.967]
[1750703175303,2.13778,2300.8,2300.3,7.967]
[1750703175601,0.04,2300.9,2300.3,12.31417066]
[1750703175809,0.04,2300.9,2300.3,12.31425622]
[1750703176015,0.04,2300.9,2300.7,4.34638678]
[1750703176183,0.04,2300.9,2300.8,7.965]
[1750703176517,0.04,2300.9,2300.8,12.31131432]
[1750703176670,0.04,2300.9,2300.8,13.50160915]
[1750703176878,0.04,2300.9,2300.8,12.31131432]
[1750703179907,0.04,2300.9,2300.8,22.86131432]
[1750703180096,0.04,2300.9,2300.8,24.11041432]
[1750703180412,0.04,2300.9,2300.8,26.46841432]
[1750703181320,0.04,2301.9,2301.1,4.34566933]
[1750703181510,0.04,2301.9,2301.8,4.3444261]
[1750703181678,0.04,2301.9,2301.8,12.3034261]
[1750703181882,0.04,2301.9,2301.8,7.959]
[1750703182316,0.04,2301.9,2301.1,4.34574768]
[1750703182494,0.04,2301.9,2301.3,4.34526109]
[1750703182825,0.04,2301.9,2301.2,7.958]
[1750703182826,0.8144,2301.8,2301.2,7.958]
[1750703183124,0.55,2301.7,2301.2,7.958]
[1750703183277,3.1774,2301.8,2301.2,7.958]
[1750703183278,0.37274,2301.6,2301.2,7.958]
[1750703183478,0.8144,2301.5,2300.5,11.98806551]
[1750703183708,0.8144,2301.5,2300.7,4.34634414]
[1750703183881,0.8144,2301.5,2300.8,7.956]
[1750703184294,0.55,2301.4,2300.8,7.956]
[1750703184497,0.8144,2301.3,2300.7,7.956]
[1750703184683,1.3644,2301.3,2300.5,7.955]
[1750703184883,0.8144,2301.2,2300.5,7.955]
[1750703185096,11.05394884,2301.2,2300.5,12.30173514]
[1750703185400,10.8144,2301.2,2300.7,4.34649229]
[1750703185612,0.8144,2301.2,2300.7,4.34637776]
[1750703185810,0.8144,2301.2,2300.8,4.34620602]
[1750703186116,0.8144,2301.2,2300.5,7.955]
[1750703186117,0.8144,2301.2,2300.9,7.955]
[1750703187686,0.8144,2301.8,2300.9,19.94306551]
[1750703187918,0.8144,2301.8,2301.6,4.34470281]
[1750703188104,0.8144,2302.1,2301.6,7.953]
[1750703188827,0.8144,2302.1,2301.6,12.29778453]
[1750703189030,0.8144,2302.1,2301.3,10.0]
[1750703189226,0.8144,2302.1,2301.4,12.29715855]
[1750703190133,0.8144,2302.1,2301.4,7.952]
[1750703190634,0.8144,2301.8,2300.4,15.34092558]
[1750703190839,2.362,2301.7,2301.0,4.34579509]
[1750703191130,2.362,2301.7,2301.1,12.29558626]
[1750703191319,0.8144,2301.8,2301.5,4.34483551]
[1750703191498,0.8144,2301.8,2301.1,12.29574515]
[1750703191499,0.8144,2301.8,2301.3,4.34523722]
[1750703191936,0.8144,2301.8,2301.4,4.34517354]
[1750703192145,0.8144,2301.8,2301.5,7.95]
[1750703192628,0.8144,2301.8,2301.5,12.29489983]
[1750703192834,0.8144,2301.8,2301.5,7.95]
[1750703193720,0.8144,2302.1,2301.5,7.95]
[1750703194113,0.8144,2302.1,2301.6,4.34469623]
[1750703194316,0.8144,2302.1,2301.7,4.34460837]
[1750703194519,0.8144,2302.5,2301.8,4.3444261]
[1750703194842,0.8144,2302.5,2301.8,5.6139261]
[1750703196042,0.8144,2302.8,2301.8,6.1639261]
[1750703196343,3.1764,2302.8,2301.8,6.1639261]
[1750703196640,10.0,2302.7,2301.8,6.1639261]
[1750703197148,0.8144,2302.8,2301.8,14.1089261]
[1750703197539,10.8144,2302.8,2301.8,14.1089261]
[1750703198222,10.8144,2302.8,2301.8,13.5579261]
[1750703199152,10.8144,2302.8,2301.7,4.34449712]
[1750703199319,0.8144,2302.2,2301.8,7.942]
[1750703199520,0.8144,2302.2,2301.5,4.34489074]
[1750703199839,0.8144,2302.2,2300.9,2.349]
[1750703200038,10.8144,2301.8,2300.5,1.223]
[1750703200242,0.55,2301.5,2300.6,12.28768774]
[1750703200447,2.349,2301.7,2299.4,1.176]
[1750703200448,11.98806551,2301.0,2299.4,1.176]
[1750703200742,0.8144,2300.0,2299.2,4.34924902]
[1750703201053,3.1634,2300.0,2299.3,4.34906469]
[1750703201352,10.8144,2300.0,2299.6,4.34856322]
[1750703201556,10.8144,2300.0,2299.5,4.34868196]
[1750703201940,0.55,2300.4,2299.9,4.34801513]
[1750703201941,0.8144,2300.4,2299.9,4.34801513]
[1750703202124,0.8144,2300.4,2300.0,12.28772298]
[1750703202451,0.8144,2300.4,2300.0,4.34772298]
[1750703202645,0.8144,2300.4,2300.1,7.94]
[1750703203161,0.8144,2300.4,2299.8,4.34816537]
[1750703203331,0.8144,2300.4,2299.9,7.94]
[1750703203661,3.27815843,2300.4,2299.9,7.94]
[1750703204230,0.8144,2300.4,2299.9,7.94]
[1750703204454,0.8144,2300.4,2299.9,12.28800161]
[1750703204649,0.8144,2300.4,2299.8,4.3481405]
[1750703204821,0.8144,2300.4,2299.9,7.94]
[1750703205668,0.8144,2300.4,2299.6,7.939]
[1750703205963,1.18482334,2300.3,2299.2,10.0]
[1750703206165,0.8144,2300.2,2299.5,4.34867135]
[1750703206476,0.8144,2300.2,2299.3,12.28809283]
[1750703206625,1.18482334,2300.3,2299.4,7.938]
[1750703206626,0.8144,2300.0,2299.4,7.938]
[1750703206825,2.35,2299.9,2299.4,7.938]
[1750703207652,0.55,2299.8,2299.1,0.04]
[1750703207851,0.816,2299.7,2299.2,4.34923694]
[1750703208129,0.816,2299.7,2299.1,4.38942629]
[1750703208326,0.816,2299.7,2299.2,7.938]
[1750703208738,10.0,2299.6,2299.1,0.04]
[1750703208939,11.3166,2299.6,2299.1,0.04]
[1750703209162,0.816,2299.5,2299.1,0.04]
[1750703209380,11.3166,2299.6,2299.1,0.04]
[1750703209381,0.816,2299.3,2299.1,0.04]
[1750703209581,22.80406551,2299.2,2299.1,0.04]
[1750703209887,0.55,2299.1,2298.1,0.04]
[1750703210185,10.55,2298.9,2298.1,4.39136958]
[1750703210589,10.55,2298.9,2298.1,0.04]
[1750703210590,12.35,2298.9,2298.1,0.04]
[1750703210772,10.0,2298.9,2298.4,4.35074856]
[1750703210978,10.816,2299.3,2298.6,4.3504742]
[1750703211175,3.6666,2299.6,2298.6,4.3504742]
[1750703211176,4.4826,2299.6,2299.1,4.34952807]
[1750703211484,10.0,2299.5,2299.0,7.938]
[1750703211692,0.55,2299.4,2298.5,4.35055891]
[1750703211854,0.816,2299.3,2298.5,4.35055891]
[1750703212583,0.816,2299.3,2298.7,4.35020312]
[1750703212785,3.166,2299.3,2298.8,4.34998073]
[1750703212957,3.4826,2299.3,2298.7,4.35017569]
[1750703213153,3.4826,2299.3,2298.8,4.35007357]
[1750703213653,3.4826,2299.3,2298.8,4.34990698]
[1750703213853,3.4826,2299.3,2298.7,4.35016285]
[1750703214284,3.4826,2299.3,2298.8,4.35008708]
[1750703214690,0.34826,2299.2,2298.7,4.35019016]
[1750703214886,0.34826,2299.2,2298.8,4.35008092]
[1750703215189,0.34826,2299.2,2298.8,4.35000806]
[1750703215557,0.34826,2299.2,2298.4,7.937]
[1750703215987,0.34826,2299.2,2298.6,4.35033387]
[1750703216289,0.55,2299.1,2298.2,1.2573]
[1750703216454,0.816,2298.9,2298.1,4.39140962]
[1750703217064,0.816,2298.9,2298.2,4.35122569]
[1750703217493,0.816,2298.9,2298.4,4.35071275]
[1750703217678,0.816,2298.9,2298.1,0.04]
[1750703217679,10.0,2298.8,2298.5,4.3506517]
[1750703218071,0.816,2298.9,2298.6,4.35042633]
[1750703218293,10.816,2298.9,2298.4,4.35077475]
[1750703218608,12.1327,2298.9,2298.1,0.04]
[1750703218818,12.1327,2298.9,2298.6,4.35037412]
[1750703219115,12.1327,2298.9,2298.7,4.35026498]
[1750703219417,12.1327,2298.9,2298.4,4.35076883]
[1750703219556,12.1327,2298.9,2298.5,4.35056168]
[1750703219760,12.1327,2298.9,2298.6,4.35046696]
[1750703220062,12.1327,2298.9,2298.5,4.35055007]
[1750703220413,0.816,2298.9,2298.3,4.35104207]
[1750703220707,0.816,2298.9,2298.5,4.35065085]
[1750703220857,0.816,2298.9,2298.1,0.04]
[1750703221211,0.55,2298.8,2298.1,0.04]
[1750703221420,0.816,2298.5,2298.1,0.04]
[1750703221713,2.352,2298.4,2298.1,0.04]
[1750703221948,2.6688,2298.3,2298.1,0.04]
[1750703222541,0.816,2298.2,2298.1,0.04]
[1750703222849,11.366,2298.2,2298.1,0.04]
[1750703223199,0.55,2298.1,2297.1,0.04]
[1750703223398,0.816,2297.7,2297.1,0.04]
[1750703223639,11.268,2298.0,2297.1,0.04]
[1750703223857,0.816,2298.0,2297.1,17.973]
[1750703224013,0.816,2298.0,2297.7,4.35200712]
[1750703224543,10.0,2298.2,2297.1,17.973]
[1750703224745,10.0,2298.2,2297.6,4.35228705]
[1750703224955,1.34848,2298.1,2297.7,4.352135]
[1750703225153,10.0,2298.2,2297.7,4.35204311]
[1750703225319,10.0,2298.2,2297.8,4.35186151]
[1750703225519,0.816,2298.3,2297.6,1.2358]
[1750703225733,0.816,2298.3,2298.1,4.3513789]
[1750703226039,0.816,2298.3,2297.6,1.2358]
[1750703226211,2.352,2298.5,2297.6,5.58808367]
[1750703226417,2.352,2298.5,2298.1,4.351318]
[1750703226928,0.816,2298.6,2297.8,7.932]
[1750703227129,0.816,2298.6,2297.6,1.2358]
[1750703227349,0.55,2298.5,2297.5,4.35255283]
[1750703227737,0.55,2298.5,2297.6,4.35226105]
[1750703227937,1.871,2298.4,2297.5,4.35244795]
[1750703228329,1.871,2298.4,2297.4,12.28465774]
[1750703228330,1.871,2298.4,2297.6,4.35236717]
[1750703228566,1.871,2298.4,2297.4,7.932]
[1750703228745,1.871,2298.4,2297.7,4.35202639]
[1750703228946,1.871,2298.4,2297.5,4.35236871]
[1750703229149,10.816,2298.4,2297.9,4.35167776]